bitfinex/quotes_SOLUSD_20220116
["timestamp","ask_amount","ask_price","bid_price","bid_amount"]
[1642299254946,41.51227588,147.39,147.29,23.6617]
[1642299255248,35.51227588,147.39,147.29,23.6617]
[1642299255445,33.8115,147.39,147.29,23.9117]
[1642299255647,1.70077588,147.38,147.29,23.9117]
[1642299255845,1.95077588,147.38,147.29,23.9117]
[1642299256945,7.95077588,147.38,147.29,23.9117]
[1642299257147,6.25,147.38,147.29,23.9117]
[1642299257347,0.25,147.38,147.29,23.9117]
[1642299257547,6.25,147.38,147.29,23.9117]
[1642299257749,0.25,147.38,147.29,23.9117]
[1642299257947,33.8115,147.39,147.29,23.9117]
[1642299258146,0.26,147.38,147.29,23.9117]
[1642299259346,0.26,147.38,147.29,23.6617]
[1642299259547,1.96077588,147.38,147.29,23.6617]
[1642299259749,1.96077588,147.38,147.31,0.02118904]
[1642299259948,0.51,147.38,147.31,0.02118904]
[1642299260149,0.25,147.38,147.31,0.02118904]
[1642299260951,39.8115,147.39,147.31,0.02118904]
[1642299261350,1.96077588,147.38,147.31,0.02118904]
[1642299261549,0.26,147.38,147.31,0.02118904]
[1642299262550,33.8115,147.39,147.31,0.02118904]
[1642299262750,1.70077588,147.38,147.31,0.02118904]
[1642299262953,1.95077588,147.38,147.31,0.02118904]
[1642299263553,11.72077588,147.38,147.31,0.02118904]
[1642299263854,0.26,147.37,147.31,0.02118904]
[1642299264252,1.70077588,147.36,147.31,0.02118904]
[1642299264452,17.28327647,147.35,147.31,0.02118904]
[1642299264854,17.53327647,147.35,147.29,23.68286064]
[1642299266754,0.25,147.35,147.29,23.68286064]
[1642299266956,7.95077588,147.36,147.29,23.68286064]
[1642299267454,7.89965937,147.36,147.29,23.68286064]
[1642299267654,54.69164708,147.36,147.29,23.68286064]
[1642299267856,0.26,147.35,147.29,23.68286064]
[1642299269758,0.26,147.35,147.29,23.6617]
[1642299272360,0.21251905,147.35,147.29,23.6617]
[1642299285799,2.14599595,147.35,147.29,23.6617]
[1642299286499,8.39599595,147.35,147.29,23.6617]
[1642299288003,10.09677183,147.35,147.29,23.6617]
[1642299289706,8.14599595,147.35,147.29,23.9117]
[1642299289908,2.14599595,147.35,147.29,23.9117]
[1642299290909,0.21251905,147.35,147.29,23.9117]
[1642299291110,0.46251905,147.35,147.29,23.9117]
[1642299291309,0.25,147.35,147.29,23.9117]
[1642299292312,0.26,147.36,147.29,23.9117]
[1642299293014,0.22186925,147.36,147.29,23.9117]
[1642299294318,42.93028125,147.37,147.29,23.9117]
[1642299294713,43.18028125,147.37,147.29,23.9117]
[1642299294915,0.25,147.37,147.29,23.9117]
[1642299295817,44.45677429,147.38,147.29,29.9117]
[1642299296015,54.22677429,147.38,147.29,29.9117]
[1642299296218,48.22677429,147.38,147.29,23.9117]
[1642299296843,54.22677429,147.38,147.29,23.9117]
[1642299297020,48.22677429,147.38,147.29,23.9117]
[1642299297418,54.22677429,147.38,147.29,29.9117]
[1642299297818,17.9534769,147.38,147.29,29.9117]
[1642299298619,11.9534769,147.38,147.29,23.9117]
[1642299299221,17.9534769,147.38,147.29,23.9117]
[1642299299622,11.9534769,147.38,147.29,23.9117]
[1642299300225,11.9534769,147.38,147.29,91.8117]
[1642299300425,17.9534769,147.38,147.3,0.26]
[1642299301224,0.25,147.38,147.3,0.26]
[1642299301425,2.1834769,147.39,147.3,0.26]
[1642299302224,11.9534769,147.39,147.3,0.26]
[1642299302924,17.9534769,147.39,147.29,29.9117]
[1642299304355,1.9334769,147.38,147.29,29.9117]
[1642299304756,8.1834769,147.38,147.29,29.9117]
[1642299305458,2.1834769,147.38,147.29,29.9117]
[1642299307659,9.77,147.37,147.29,23.9117]
[1642299307960,10.02,147.37,147.29,23.9117]
[1642299308158,16.02,147.37,147.29,23.9117]
[1642299308359,10.02,147.37,147.29,23.9117]
[1642299309460,23.76570171,147.33,147.29,23.9117]
[1642299309660,47.53140342,147.33,147.29,23.9117]
[1642299313064,47.49729795,147.33,147.29,23.9117]
[1642299314368,23.76570171,147.33,147.29,23.9117]
[1642299314767,23.73159624,147.31,147.29,23.9117]
[1642299314968,23.73159624,147.31,147.3,3.03219997]
[1642299315167,23.73159624,147.31,147.3,6.06432675]
[1642299315367,23.73159624,147.31,147.3,6.31432675]
[1642299316769,16.86232495,147.32,147.3,6.57432675]
[1642299316971,6.93901414,147.32,147.31,67.9]
[1642299317171,6.93901414,147.32,147.31,68.16]
[1642299317370,6.93901414,147.32,147.31,68.41]
[1642299317573,6.93901414,147.32,147.31,91.53801977]
[1642299317769,0.00901414,147.32,147.31,91.53801977]
[1642299318771,0.00901414,147.32,147.31,23.63801977]
[1642299319170,0.00901414,147.32,147.31,29.63801977]
[1642299320173,2.1834769,147.39,147.31,29.63801977]
[1642299320570,2.1834769,147.39,147.32,24.6988]
[1642299320976,2.1834769,147.39,147.32,24.9488]
[1642299321472,0.25,147.39,147.32,24.9488]
[1642299321873,2.1834769,147.4,147.33,0.26]
[1642299322072,1.9334769,147.4,147.32,24.9488]
[1642299322274,2.1834769,147.4,147.33,0.26]
[1642299324974,1.9334769,147.4,147.33,0.26]
[1642299326174,44.88531134,147.39,147.33,0.26]
[1642299326375,45.13531134,147.39,147.32,24.9488]
[1642299330079,0.25,147.39,147.32,24.9488]
[1642299330278,6.25,147.39,147.32,24.9488]
[1642299330477,26.1419769,147.4,147.32,24.9488]
[1642299330678,32.1419769,147.4,147.32,24.9488]
[1642299331278,26.1419769,147.4,147.32,24.9488]
[1642299331777,24.2085,147.4,147.32,24.9488]
[1642299333782,30.2085,147.4,147.32,24.9488]
[1642299334083,24.2085,147.4,147.32,24.9488]
[1642299334483,32.1419769,147.4,147.32,24.9488]
[1642299334784,26.1419769,147.4,147.32,24.9488]
[1642299336185,1.9334769,147.4,147.32,24.9488]
[1642299336384,1.9334769,147.4,147.33,0.26]
[1642299337185,1.9334769,147.42,147.33,0.26]
[1642299337385,8.1834769,147.42,147.33,0.26]
[1642299337686,2.1834769,147.42,147.33,0.26]
[1642299337986,8.1834769,147.42,147.33,0.26]
[1642299338483,6.25,147.42,147.33,0.26]
[1642299339988,0.25,147.42,147.33,0.26]
[1642299340192,80.61075972,147.43,147.33,0.26]
[1642299340387,80.61075972,147.43,147.34,1.90226467]
[1642299340587,80.61075972,147.43,147.34,25.70076467]
[1642299340789,80.61075972,147.43,147.35,0.26]
[1642299341990,32.1350769,147.43,147.35,0.26]
[1642299342389,1.9334769,147.43,147.35,0.26]
[1642299342589,1.9334769,147.43,147.35,10.03]
[1642299342792,1.9334769,147.43,147.36,22.6359]
[1642299342990,1.9334769,147.43,147.38,67.9]
[1642299343188,1.9334769,147.43,147.38,74.106]
[1642299343392,1.9334769,147.43,147.39,0.26]
[1642299343590,43.35907166,147.43,147.36,22.6359]
[1642299343793,43.35907166,147.43,147.34,1.86140546]
[1642299343993,43.35907166,147.43,147.34,24.63530546]
[1642299343994,45.05984754,147.43,147.34,24.63530546]
[1642299344190,51.05984754,147.43,147.34,24.63530546]
[1642299344398,51.30984754,147.43,147.34,24.63530546]
[1642299344591,51.30984754,147.43,147.34,49.4659899]
[1642299344892,51.30984754,147.43,147.34,47.60458444]
[1642299345393,9.77,147.42,147.34,47.60458444]
[1642299345812,10.02,147.42,147.34,47.60458444]
[1642299346015,52.99332444,147.43,147.34,47.60458444]
[1642299346212,46.99332444,147.43,147.34,47.60458444]
[1642299347414,47.24332444,147.43,147.34,47.60458444]
[1642299348617,45.54254856,147.43,147.34,47.60458444]
[1642299348814,45.54254856,147.43,147.35,0.26]
[1642299349216,45.29254856,147.43,147.35,0.26]
[1642299349416,45.54254856,147.43,147.35,0.26]
[1642299349715,43.60907166,147.43,147.35,0.26]
[1642299350115,43.35907166,147.43,147.35,0.26]
[1642299350315,43.60907166,147.43,147.35,0.26]
[1642299351616,0.25,147.43,147.35,0.26]
[1642299351816,2.1834769,147.44,147.35,0.26]
[1642299352016,1.9334769,147.44,147.35,0.26]
[1642299352219,23.8847,147.45,147.35,0.26]
[1642299352220,25.8181769,147.45,147.35,10.03]
[1642299352420,26.0681769,147.45,147.36,22.6212]
[1642299352617,26.0681769,147.45,147.36,30.0022]
[1642299352818,26.0681769,147.45,147.37,0.26]
[1642299353222,24.1347,147.45,147.37,0.26]
[1642299354621,23.8847,147.45,147.37,0.26]
[1642299355021,23.8847,147.45,147.37,68.16]
[1642299355424,1.9334769,147.47,147.37,0.25]
[1642299355623,26.8021769,147.47,147.37,0.25]
[1642299356123,26.5521769,147.47,147.37,0.25]
[1642299356326,24.6187,147.47,147.37,7.178]
[1642299356726,24.6187,147.47,147.37,7.428]
[1642299356929,24.6187,147.47,147.38,23.6753]
[1642299357326,24.6187,147.47,147.38,91.8253]
[1642299357924,24.8687,147.47,147.38,91.8253]
[1642299358525,24.8687,147.47,147.38,23.9253]
[1642299358726,75.29451529,147.47,147.38,23.9253]
[1642299360626,75.04451529,147.47,147.38,23.9253]
[1642299360828,24.8687,147.47,147.38,23.9253]
[1642299362733,24.6187,147.47,147.38,23.9253]
[1642299362934,24.8687,147.47,147.38,23.9253]
[1642299365336,24.8687,147.47,147.38,91.8253]
[1642299366334,24.8687,147.47,147.38,97.8253]
[1642299366736,24.8687,147.47,147.38,91.8253]
[1642299367149,1.9334769,147.48,147.38,91.8253]
[1642299367338,1.9334769,147.48,147.38,99.3193]
[1642299367539,1.9334769,147.48,147.38,105.3193]
[1642299368139,36.64381248,147.47,147.38,105.3193]
[1642299368940,24.5861,147.5,147.38,105.3193]
[1642299369144,24.8361,147.5,147.38,106.96287801]
[1642299369341,1.9334769,147.49,147.38,106.96287801]
[1642299369941,38.27846429,147.49,147.38,106.96287801]
[1642299370144,36.34498739,147.49,147.38,106.96287801]
[1642299370344,36.34498739,147.49,147.39,9.77]
[1642299370744,36.34498739,147.49,147.4,68.16]
[1642299370943,36.34498739,147.49,147.41,91.1486]
[1642299371342,36.59498739,147.49,147.42,0.26]
[1642299373467,36.59498739,147.49,147.41,23.4986]
[1642299373667,36.59498739,147.49,147.41,0.25]
[1642299373868,34.1436,147.48,147.38,24.4479]
[1642299374272,40.3936,147.48,147.38,24.6979]
[1642299374971,40.3936,147.48,147.39,0.26]
[1642299375171,34.3936,147.48,147.39,0.26]
[1642299377775,36.3270769,147.48,147.39,0.26]
[1642299378874,26.5570769,147.48,147.39,68.16]
[1642299379075,26.5570769,147.48,147.4,24.3899]
[1642299379278,25.8070769,147.48,147.4,24.6399]
[1642299379775,23.8736,147.48,147.4,24.6399]
[1642299380175,1.9334769,147.49,147.41,67.9]
[1642299380375,1.9334769,147.49,147.42,91.1455]
[1642299380775,1.9334769,147.49,147.43,0.26]
[1642299381175,50.86147265,147.49,147.43,0.26]
[1642299381375,48.92799575,147.49,147.43,0.26]
[1642299381879,1.9334769,147.51,147.43,0.26]
[1642299383880,50.98051075,147.52,147.43,0.26]
[1642299384279,51.23051075,147.52,147.43,0.26]
[1642299384884,50.98051075,147.52,147.43,0.26]
[1642299387586,51.23051075,147.52,147.43,0.26]
[1642299387887,51.23051075,147.52,147.42,29.4955]
[1642299388087,51.23051075,147.52,147.43,0.26]
[1642299388289,9.77,147.51,147.43,0.26]
[1642299388687,25.8429769,147.51,147.43,0.26]
[1642299389388,26.0929769,147.51,147.43,0.26]
[1642299389689,26.0929769,147.51,147.42,29.4955]
[1642299389889,26.0929769,147.51,147.42,23.4955]
[1642299390687,32.0929769,147.51,147.42,23.4955]
[1642299390886,26.0929769,147.51,147.42,23.4955]
[1642299393988,32.0929769,147.51,147.42,23.4955]
[1642299394388,26.0929769,147.51,147.42,23.4955]
[1642299394996,32.0929769,147.51,147.42,23.4955]
[1642299395192,26.0929769,147.51,147.42,23.4955]
[1642299395392,32.0929769,147.51,147.42,23.4955]
[1642299397693,26.0929769,147.51,147.42,23.4955]
[1642299401900,32.0929769,147.51,147.42,0.25]
[1642299402098,9.77,147.5,147.38,1.86140546]
[1642299402298,36.81292555,147.49,147.38,7.86140546]
[1642299402498,32.486,147.48,147.38,7.86140546]
[1642299402904,38.736,147.48,147.38,7.86140546]
[1642299403202,48.9105,147.48,147.38,7.86140546]
[1642299403603,50.61127588,147.48,147.38,1.86140546]
[1642299403801,52.54475278,147.48,147.36,1.86140546]
[1642299404002,174.65475278,147.48,147.36,1.86140546]
[1642299404204,174.65475278,147.48,147.36,7.86140546]
[1642299404808,1.9334769,147.44,147.36,6.0]
[1642299405006,45.72709838,147.43,147.36,6.0]
[1642299405204,45.72709838,147.43,147.35,17.87141508]
[1642299405404,45.97709838,147.43,147.35,23.87141508]
[1642299405628,45.97709838,147.43,147.35,6.0]
[1642299405833,45.97709838,147.43,147.32,6.0]
[1642299406029,68.73039838,147.43,147.32,0.25]
[1642299406430,68.73039838,147.43,147.31,28.5761]
[1642299406832,68.73039838,147.43,147.32,22.42059397]
[1642299407230,68.73039838,147.43,147.32,28.16059397]
[1642299407631,68.73039838,147.43,147.32,28.41059397]
[1642299408233,68.73039838,147.43,147.33,0.26]
[1642299408435,68.73039838,147.43,147.33,92.0606]
[1642299408834,68.73039838,147.43,147.33,98.3106]
[1642299409132,32.7733,147.43,147.33,98.3106]
[1642299409937,32.5233,147.43,147.33,98.3106]
[1642299411337,32.7733,147.43,147.33,98.3106]
[1642299415041,32.5233,147.43,147.33,98.3106]
[1642299415242,32.7733,147.43,147.33,98.3106]
[1642299415544,32.5233,147.43,147.33,98.3106]
[1642299415741,46.09016512,147.42,147.33,30.4106]
[1642299416642,46.09016512,147.42,147.33,98.3106]
[1642299416844,46.34016512,147.42,147.33,98.3106]
[1642299417246,0.25,147.42,147.33,98.3106]
[1642299417445,32.7733,147.43,147.33,98.3106]
[1642299418244,77.55813834,147.43,147.33,98.3106]
[1642299422351,77.55813834,147.43,147.33,30.1506]
[1642299423452,77.55813834,147.43,147.33,98.0506]
[1642299423855,77.55813834,147.43,147.34,0.26]
[1642299425486,77.55813834,147.43,147.33,30.1506]
[1642299426787,77.55813834,147.43,147.34,0.26]
[1642299428689,77.55813834,147.43,147.33,30.1506]
[1642299429486,77.30813834,147.43,147.33,98.0506]
[1642299429690,77.30813834,147.43,147.34,0.26]
[1642299429888,77.55813834,147.43,147.34,0.26]
[1642299430687,77.30813834,147.43,147.34,68.16]
[1642299430889,77.30813834,147.43,147.35,24.5444]
[1642299431087,77.30813834,147.43,147.36,2.86969047]
[1642299431490,77.30813834,147.43,147.36,9.11969047]
[1642299432088,77.55813834,147.43,147.36,9.11969047]
[1642299436792,22.7533,147.43,147.36,9.11969047]
[1642299437090,23.0033,147.43,147.36,9.11969047]
[1642299437291,23.0033,147.43,147.37,0.26]
[1642299437490,22.7533,147.43,147.37,0.26]
[1642299437890,23.0033,147.43,147.37,0.26]
[1642299442906,0.25,147.43,147.37,0.26]
[1642299443129,1.9334769,147.45,147.37,90.7405]
[1642299443504,1.9334769,147.45,147.37,96.9905]
[1642299444308,26.6326769,147.47,147.37,98.85190546]
[1642299444807,32.6326769,147.47,147.37,98.85190546]
[1642299445009,32.8826769,147.47,147.37,98.85190546]
[1642299445206,41.89295848,147.46,147.37,98.85190546]
[1642299445407,6.25,147.46,147.37,96.9905]
[1642299445609,11.7034769,147.48,147.37,98.6330869]
[1642299445907,11.9534769,147.48,147.37,98.6330869]
[1642299446106,10.02,147.48,147.37,100.49449236]
[1642299446506,50.23801782,147.48,147.37,100.49449236]
[1642299446907,50.23801782,147.48,147.37,98.6330869]
[1642299447308,10.02,147.48,147.37,98.6330869]
[1642299448209,51.11828497,147.48,147.37,98.6330869]
[1642299450658,51.11828497,147.48,147.37,96.9905]
[1642299451311,51.11828497,147.48,147.37,96.7405]
[1642299452319,51.11828497,147.48,147.37,96.9905]
[1642299452517,51.11828497,147.48,147.37,107.2139]
[1642299453221,51.11828497,147.48,147.37,108.8564869]
[1642299455720,50.86828497,147.48,147.37,108.8564869]
[1642299455919,1.9334769,147.49,147.37,114.6934869]
[1642299456120,1.9334769,147.49,147.37,124.4634869]
[1642299456521,2.1834769,147.49,147.37,124.4634869]
[1642299456922,45.04049999,147.48,147.37,124.4634869]
[1642299458322,45.29049999,147.48,147.37,124.4634869]
[1642299458523,45.29049999,147.48,147.37,126.32489236]
[1642299459126,45.29049999,147.48,147.37,124.4634869]
[1642299461836,45.29049999,147.48,147.37,118.6264869]
[1642299462435,45.29049999,147.48,147.37,120.48789236]
[1642299464239,55.06049999,147.48,147.37,30.69190546]
[1642299464638,55.06049999,147.48,147.37,28.5805]
[1642299464838,24.1218,147.47,147.37,28.5805]
[1642299465039,9.77,147.46,147.37,28.5805]
[1642299465442,10.02,147.46,147.37,28.5805]
[1642299466059,45.8149104,147.45,147.37,28.5805]
[1642299466457,70.8085104,147.45,147.37,28.5805]
[1642299466958,70.8085104,147.45,147.37,28.8305]
[1642299470165,70.5585104,147.45,147.37,28.8305]
[1642299470461,70.8085104,147.45,147.38,3.78260974]
[1642299470962,70.8085104,147.45,147.38,4.03260974]
[1642299472762,70.5585104,147.45,147.38,4.03260974]
[1642299472962,70.8085104,147.45,147.38,4.03260974]
[1642299474272,70.8085104,147.45,147.38,10.03260974]
[1642299474669,70.5585104,147.45,147.38,10.03260974]
[1642299474868,70.8085104,147.45,147.39,0.26]
[1642299475069,70.5585104,147.45,147.39,0.26]
[1642299475670,70.8085104,147.45,147.39,0.26]
[1642299479373,70.8085104,147.45,147.38,10.03260974]
[1642299479574,70.8085104,147.45,147.37,22.5805]
[1642299479774,70.8085104,147.45,147.37,28.8305]
[1642299481478,80.5785104,147.45,147.37,28.8305]
[1642299481678,80.3285104,147.45,147.37,28.8305]
[1642299481880,80.5785104,147.45,147.37,28.8305]
[1642299482379,80.5785104,147.45,147.38,0.26]
[1642299483080,80.3285104,147.45,147.38,0.26]
[1642299483283,80.5785104,147.45,147.38,0.26]
[1642299485486,70.8085104,147.45,147.38,0.26]
[1642299487087,76.8085104,147.45,147.38,0.26]
[1642299487489,86.5785104,147.45,147.38,0.26]
[1642299489093,76.5585104,147.45,147.38,0.26]
[1642299489293,70.5585104,147.45,147.38,0.26]
[1642299490395,70.8085104,147.45,147.38,0.26]
[1642299490796,80.5785104,147.45,147.38,0.26]
[1642299491396,70.8085104,147.45,147.38,0.26]
[1642299493421,80.5785104,147.45,147.38,0.26]
[1642299493621,80.5785104,147.45,147.37,28.8305]
[1642299494222,1.45242486,147.44,147.37,28.8305]
[1642299494422,1.45242486,147.44,147.37,6.25]
[1642299494624,11.47242486,147.44,147.37,6.25]
[1642299495622,11.47242486,147.44,147.37,0.25]
[1642299495823,11.47242486,147.44,147.35,30.95530546]
[1642299498725,11.47242486,147.44,147.36,1.86140546]
[1642299498925,11.47242486,147.44,147.36,8.11140546]
[1642299501534,11.47242486,147.44,147.37,6.23181876]
[1642299501933,11.47242486,147.44,147.37,12.48181876]
[1642299503634,17.47242486,147.44,147.37,12.48181876]
[1642299503834,11.47242486,147.44,147.37,12.48181876]
[1642299504335,17.47242486,147.44,147.37,12.48181876]
[1642299504936,11.47242486,147.44,147.37,6.25]
[1642299505134,11.47242486,147.44,147.37,0.25]
[1642299505335,11.47242486,147.44,147.36,8.11140546]
[1642299506136,11.47242486,147.44,147.36,30.02386825]
[1642299506339,11.47242486,147.44,147.36,8.11140546]
[1642299509639,11.47242486,147.44,147.36,31.30780546]
[1642299517454,10.02,147.44,147.36,31.30780546]
[1642299519883,1.9334769,147.45,147.37,0.26]
[1642299520084,1.9334769,147.45,147.37,6.154]
[1642299520485,1.9334769,147.45,147.37,12.404]
[1642299520684,1.9334769,147.45,147.38,102.2845]
[1642299520890,1.9334769,147.45,147.39,0.26]
[1642299521286,36.64790041,147.47,147.39,0.26]
[1642299522588,36.64790041,147.47,147.39,2.12140546]
[1642299522787,36.64790041,147.47,147.4,2.51410022]
[1642299523189,36.64790041,147.47,147.41,0.26]
[1642299523486,36.64790041,147.47,147.4,30.6187]
[1642299524088,36.64790041,147.47,147.4,30.3687]
[1642299524690,36.89790041,147.47,147.4,30.3687]
[1642299525288,36.89790041,147.47,147.4,24.3687]
[1642299527293,38.83137731,147.47,147.4,24.3687]
[1642299531190,38.83137731,147.47,147.4,24.6187]
[1642299531390,38.83137731,147.47,147.4,24.3687]
[1642299532294,38.83137731,147.47,147.4,24.6187]
[1642299532494,38.83137731,147.47,147.41,6.20249714]
[1642299532495,1.9334769,147.47,147.41,6.20249714]
[1642299532695,1.9334769,147.47,147.41,6.46249714]
[1642299532894,1.9334769,147.47,147.41,12.71249714]
[1642299533295,1.9334769,147.47,147.42,22.8619]
[1642299533697,49.97082666,147.49,147.43,0.26]
[1642299535498,3.43237719,147.52,147.43,0.26]
[1642299536599,36.31918567,147.51,147.43,0.26]
[1642299545606,1.49890029,147.52,147.43,0.26]
[1642299546407,1.9334769,147.55,147.43,0.26]
[1642299546607,38.60755739,147.55,147.44,1.64665608]
[1642299546808,38.60755739,147.55,147.46,86.7277873]
[1642299547006,38.60755739,147.55,147.47,23.1546]
[1642299547207,38.60755739,147.55,147.47,23.4146]
[1642299547407,38.60755739,147.55,147.47,97.5646]
[1642299548011,36.67408049,147.55,147.47,97.5646]
[1642299551010,24.05686465,147.56,147.47,97.5646]
[1642299552036,74.14289495,147.56,147.47,97.5646]
[1642299552237,51.27529495,147.56,147.47,97.5646]
[1642299553638,51.27529495,147.56,147.47,29.4046]
[1642299553838,51.52529495,147.56,147.47,29.4046]
[1642299554242,51.27529495,147.56,147.47,29.4046]
[1642299554838,51.52529495,147.56,147.47,29.4046]
[1642299560743,51.27529495,147.56,147.47,29.4046]
[1642299560944,51.27529495,147.56,147.47,6.0]
[1642299561147,9.77,147.55,147.47,6.0]
[1642299561346,15.77,147.55,147.47,6.0]
[1642299561545,17.47077588,147.55,147.47,6.0]
[1642299561745,19.40425278,147.55,147.44,22.9758]
[1642299561945,23.6318,147.54,147.41,1.86140546]
[1642299562146,9.77,147.53,147.41,7.86140546]
[1642299562345,11.72077588,147.53,147.41,7.86140546]
[1642299562545,10.02,147.53,147.41,7.86140546]
[1642299562746,37.68106798,147.51,147.42,23.4306]
[1642299562947,37.93106798,147.51,147.42,29.4306]
[1642299563947,23.0898,147.52,147.42,29.4306]
[1642299564148,23.0898,147.52,147.43,0.26]
[1642299564548,23.0898,147.52,147.43,1.90665608]
[1642299564748,23.0898,147.52,147.43,76.05665608]
[1642299564950,72.59096205,147.52,147.44,7.18920788]
[1642299565149,72.59096205,147.52,147.45,24.4381]
[1642299565349,72.59096205,147.52,147.45,30.9481]
[1642299565750,72.84096205,147.52,147.45,30.9481]
[1642299568450,72.84096205,147.52,147.46,1.64665608]
[1642299568853,72.84096205,147.52,147.47,0.26]
[1642299570052,1.9334769,147.55,147.47,1.90665608]
[1642299570252,1.9334769,147.55,147.48,67.9]
[1642299570553,1.9334769,147.56,147.49,1.90665608]
[1642299570754,1.9334769,147.56,147.5,32.3555]
[1642299570954,1.9334769,147.56,147.51,18.10107656]
[1642299571356,1.9334769,147.56,147.51,92.25107656]
[1642299571756,1.9334769,147.61,147.52,1.64665608]
[1642299571954,1.9334769,147.61,147.53,0.26]
[1642299572757,1.9334769,147.63,147.53,0.26]
[1642299573355,48.73493245,147.63,147.53,0.26]
[1642299573553,1.9334769,147.63,147.53,0.26]
[1642299574559,44.15472087,147.64,147.53,0.26]
[1642299575158,9.77,147.65,147.53,0.26]
[1642299575362,1.9334769,147.66,147.53,11.67242339]
[1642299575560,1.9334769,147.66,147.55,67.9]
[1642299575761,1.9334769,147.66,147.55,77.67]
[1642299575961,1.9334769,147.66,147.56,1.90242339]
[1642299576162,1.9334769,147.66,147.56,2.21903358]
[1642299576361,1.9334769,147.66,147.57,75.08920788]
[1642299576564,1.21653187,147.68,147.57,86.50163127]
[1642299576762,1.21653187,147.68,147.58,0.26]
[1642299576962,1.21653187,147.68,147.58,1.90242339]
[1642299577163,1.9334769,147.7,147.59,9.77]
[1642299577362,42.13543301,147.69,147.6,0.26]
[1642299577763,42.13543301,147.69,147.59,6.25]
[1642299577964,48.13543301,147.69,147.59,6.25]
[1642299578192,48.13543301,147.69,147.58,54.656]
[1642299578394,57.90543301,147.69,147.58,54.656]
[1642299578593,57.90543301,147.69,147.58,6.0]
[1642299578793,58.15543301,147.69,147.58,6.0]
[1642299578994,58.15543301,147.69,147.56,15.77]
[1642299579196,58.15543301,147.69,147.56,6.0]
[1642299579398,68.31553301,147.69,147.54,30.3621]
[1642299579599,68.31553301,147.69,147.54,30.6121]
[1642299579996,68.31553301,147.69,147.55,0.26]
[1642299580195,68.31553301,147.69,147.55,22.67767826]
[1642299580396,68.31553301,147.69,147.55,28.92767826]
[1642299580997,68.31553301,147.69,147.55,6.51]
[1642299581994,68.31553301,147.69,147.55,0.51]
[1642299582194,1.07284429,147.66,147.55,6.51]
[1642299582396,21.25524429,147.66,147.55,6.51]
[1642299582795,21.25524429,147.66,147.55,0.51]
[1642299582995,21.25524429,147.66,147.55,6.51]
[1642299583597,21.25524429,147.66,147.54,6.0]
[1642299583798,190.01,147.65,147.46,26.72780546]
[1642299583996,10.1663,147.6,147.46,50.39320546]
[1642299584196,9.77,147.59,147.46,50.39320546]
[1642299584399,16.02,147.59,147.46,48.5318]
[1642299584597,36.52909495,147.58,147.47,19.59079937]
[1642299584796,9.77,147.57,147.47,19.59079937]
[1642299584996,9.77,147.57,147.46,48.5318]
[1642299585298,1.9334769,147.65,147.52,0.31658745]
[1642299585496,1.9334769,147.65,147.56,0.30284524]
[1642299585696,1.9334769,147.65,147.57,9.77]
[1642299585897,1.9334769,147.65,147.57,75.79242339]
[1642299586099,5.25468512,147.71,147.57,75.79242339]
[1642299586296,10.1586,147.71,147.58,106.02219982]
[1642299586498,9.77,147.72,147.58,106.28219982]
[1642299586698,9.77,147.72,147.59,1.64242339]
[1642299586901,15.77,147.72,147.6,0.26]
[1642299587499,50.0405795,147.71,147.6,0.26]
[1642299587900,50.2905795,147.71,147.6,0.26]
[1642299588099,50.0405795,147.71,147.6,1.90242339]
[1642299588399,50.0405795,147.71,147.61,7.96260801]
[1642299588902,50.0405795,147.71,147.61,8.21260801]
[1642299589300,50.2905795,147.71,147.62,0.26]
[1642299590302,50.2905795,147.71,147.61,8.21260801]
[1642299594809,50.2905795,147.71,147.61,0.25]
[1642299595106,50.2905795,147.71,147.6,0.25]
[1642299595507,50.2905795,147.71,147.59,0.26]
[1642299595707,50.2905795,147.71,147.59,38.31369565]
[1642299595907,50.2905795,147.71,147.59,46.20611904]
[1642299596606,50.2905795,147.71,147.59,7.89242339]
[1642299596905,56.2905795,147.71,147.59,6.25]